{"text_format":"3","workbook":"xlsx","n_sheets":4,"sheets":["НАЧАЛО","ПАРАМЕТРЫ ПРОЕКТА","СВЕДЕНИЯ О ПРОЕКТЕ","ИТОГИ ПРОЕКТА"],"not_rendered":{"charts":2,"defined_names":3,"pivot_tables":1},"read":"whole","date_system":"1900"}

{"sheet":"НАЧАЛО","index":0,"n_rows":7,"n_cols":2,"rows_kept":7}
[null,"ОБ ЭТОМ ШАБЛОНЕ"]
[null,"Эта книга помогает вести учет планирования мероприятия, отслеживая параметры проекта, сведения о нем и итоговые значения."]
[null,"Введите данные на листах «Параметры проекта» и «Сведения о проекте», чтобы обновить гистограммы. Сводная таблица на листе «Итоги проекта» обновляется автоматически."]
[null,"Укажите название компании на листе параметров, и оно автоматически обновится на других листах."]
[null,"Примечание  "]
[null,"В столбце A каждого листа книги «Учет планирования мероприятия» содержатся дополнительные инструкции. Их текст намерено скрыт. Чтобы удалить этот текст, выделите столбец A и нажмите клавишу DELETE. Чтобы увидеть текст, выделите столбец A и измените цвет шрифта."]
[null,"Чтобы получить дополнительные сведения о таблице на листе, щелкните в ней ячейку, нажмите клавиши SHIFT+F10 и выберите пункт «Таблица», а затем — «Замещающий текст»."]

{"sheet":"ПАРАМЕТРЫ ПРОЕКТА","index":1,"n_rows":24,"n_cols":9,"rows_kept":24,"merged":[[23,1,42,3]]}
["Укажите на этом листе параметры проекта. Введите название компании в ячейке справа. Ячейки в этом столбце содержат полезные инструкции. Нажмите СТРЕЛКУ ВНИЗ, чтобы начать.","Название компании"]
["Ячейка справа содержит название листа.","Средство учета проектов по управлению мероприятиями"]
["В ячейке справа представлено заявление о конфиденциальности.",{"$f":"B1&\" (конфиденциально)\"","v":"Название компании (конфиденциально)"}]
["В ячейке справа представлен совет.","Значения в затененных ячейках вычисляются автоматически. В них не нужно вводить данные."]
["Введите сведения в таблице «Параметры», начинающейся с ячейки справа. Дальнейшие инструкции представлены в ячейке A12.","ТИП ПРОЕКТА","МЕНЕДЖЕР ПО РАБОТЕ С КЛИЕНТАМИ","РУКОВОДИТЕЛЬ ПРОЕКТА","МЕНЕДЖЕР ПО СТРАТЕГИИ","СПЕЦИАЛИСТ ПО ДИЗАЙНУ","ОБСЛУЖИВАЮЩИЙ ПЕРСОНАЛ","АДМИНИСТРАТИВНЫЙ ПЕРСОНАЛ","Итог"]
[null,"Разработка стратегии мероприятия",{"v":0.2,"d":"20%"},{"v":0.1,"d":"10%"},{"v":0.6,"d":"60%"},{"v":0,"d":"0%"},{"v":0,"d":"0%"},{"v":0.1,"d":"10%"},{"$f":"SUM(Параметры[[#This Row],[МЕНЕДЖЕР ПО РАБОТЕ С КЛИЕНТАМИ]:[АДМИНИСТРАТИВНЫЙ ПЕРСОНАЛ]])","v":{"v":1,"d":"100%"}}]
[null,"Планирование мероприятия",{"v":0.2,"d":"20%"},{"v":0.5,"d":"50%"},{"v":0.1,"d":"10%"},{"v":0.1,"d":"10%"},{"v":0,"d":"0%"},{"v":0.1,"d":"10%"},{"$f":"SUM(Параметры[[#This Row],[МЕНЕДЖЕР ПО РАБОТЕ С КЛИЕНТАМИ]:[АДМИНИСТРАТИВНЫЙ ПЕРСОНАЛ]])","v":{"v":0.9999999999999999,"d":"100%"}}]
[null,"Оформление мероприятие",{"v":0.2,"d":"20%"},{"v":0.2,"d":"20%"},{"v":0,"d":"0%"},{"v":0.5,"d":"50%"},{"v":0,"d":"0%"},{"v":0.1,"d":"10%"},{"$f":"SUM(Параметры[[#This Row],[МЕНЕДЖЕР ПО РАБОТЕ С КЛИЕНТАМИ]:[АДМИНИСТРАТИВНЫЙ ПЕРСОНАЛ]])","v":{"v":1,"d":"100%"}}]
[null,"Логистика мероприятия",{"v":0.2,"d":"20%"},{"v":0.6,"d":"60%"},{"v":0,"d":"0%"},{"v":0,"d":"0%"},{"v":0.1,"d":"10%"},{"v":0.1,"d":"10%"},{"$f":"SUM(Параметры[[#This Row],[МЕНЕДЖЕР ПО РАБОТЕ С КЛИЕНТАМИ]:[АДМИНИСТРАТИВНЫЙ ПЕРСОНАЛ]])","v":{"v":1,"d":"100%"}}]
[null,"Подбор обслуживающего персонала",{"v":0.2,"d":"20%"},{"v":0.1,"d":"10%"},{"v":0,"d":"0%"},{"v":0,"d":"0%"},{"v":0.6,"d":"60%"},{"v":0.1,"d":"10%"},{"$f":"SUM(Параметры[[#This Row],[МЕНЕДЖЕР ПО РАБОТЕ С КЛИЕНТАМИ]:[АДМИНИСТРАТИВНЫЙ ПЕРСОНАЛ]])","v":{"v":1,"d":"100%"}}]
[null,"Оценка мероприятия",{"v":0.2,"d":"20%"},{"v":0.2,"d":"20%"},{"v":0.2,"d":"20%"},{"v":0.2,"d":"20%"},{"v":0,"d":"0%"},{"v":0.2,"d":"20%"},{"$f":"SUM(Параметры[[#This Row],[МЕНЕДЖЕР ПО РАБОТЕ С КЛИЕНТАМИ]:[АДМИНИСТРАТИВНЫЙ ПЕРСОНАЛ]])","v":{"v":1,"d":"100%"}}]
["Укажите смешанные ставки в ячейках справа — от C12 до H12. Дальнейшие инструкции представлены в ячейке A14.","Смешанные ставки",{"v":180,"d":"180 ₽"},{"v":120,"d":"120 ₽"},{"v":150,"d":"150 ₽"},{"v":100,"d":"100 ₽"},{"v":80,"d":"80 ₽"},{"v":60,"d":"60 ₽"}]
[]
["В ячейке справа находится гистограмма для сравнения запланированных и фактических затрат, а в ячейке F14 — гистограмма для сравнения запланированных и фактических часов работы.",{"$nulls":4},"В этой ячейке представлена гистограмма для сравнения запланированных и фактических часов работы."]
[null,null,"МЕНЕДЖЕР ПО РАБОТЕ С КЛИЕНТАМИ","РУКОВОДИТЕЛЬ ПРОЕКТА","МЕНЕДЖЕР ПО СТРАТЕГИИ","СПЕЦИАЛИСТ ПО ДИЗАЙНУ","ОБСЛУЖИВАЮЩИЙ ПЕРСОНАЛ","АДМИНИСТРАТИВНЫЙ ПЕРСОНАЛ"]
[null,"ЗАПЛАНИРОВАННЫЕ ЗАТРАТЫ",{"$f":"SUBTOTAL(109,Сведения_о_проекте[МЕНЕДЖЕР ПО РАБОТЕ С КЛИЕНТАМИ])","v":{"v":54000,"d":"54,000.00 ₽"}},{"$f":"SUBTOTAL(109,Сведения_о_проекте[РУКОВОДИТЕЛЬ ПРОЕКТА])","v":{"v":52200,"d":"52,200.00 ₽"}},{"$f":"SUBTOTAL(109,Сведения_о_проекте[МЕНЕДЖЕР ПО СТРАТЕГИИ])","v":{"v":24000,"d":"24,000.00 ₽"}},{"$f":"SUBTOTAL(109,Сведения_о_проекте[СПЕЦИАЛИСТ ПО ДИЗАЙНУ])","v":{"v":29000,"d":"29,000.00 ₽"}},{"$f":"SUBTOTAL(109,Сведения_о_проекте[ОБСЛУЖИВАЮЩИЙ ПЕРСОНАЛ])","v":{"v":13200,"d":"13,200.00 ₽"}},{"$f":"SUBTOTAL(109,Сведения_о_проекте[АДМИНИСТРАТИВНЫЙ ПЕРСОНАЛ])","v":{"v":9000,"d":"9,000.00 ₽"}}]
[null,"ФАКТИЧЕСКИЕ ЗАТРАТЫ",{"$f":"SUBTOTAL(109,Сведения_о_проекте[[МЕНЕДЖЕР ПО РАБОТЕ С КЛИЕНТАМИ ]])","v":{"v":54360,"d":"54,360.00 ₽"}},{"$f":"SUBTOTAL(109,Сведения_о_проекте[[РУКОВОДИТЕЛЬ ПРОЕКТА ]])","v":{"v":51540,"d":"51,540.00 ₽"}},{"$f":"SUBTOTAL(109,Сведения_о_проекте[[МЕНЕДЖЕР ПО СТРАТЕГИИ ]])","v":{"v":25650,"d":"25,650.00 ₽"}},{"$f":"SUBTOTAL(109,Сведения_о_проекте[[СПЕЦИАЛИСТ ПО ДИЗАЙНУ ]])","v":{"v":28900,"d":"28,900.00 ₽"}},{"$f":"SUBTOTAL(109,Сведения_о_проекте[[ОБСЛУЖИВАЮЩИЙ ПЕРСОНАЛ ]])","v":{"v":13400,"d":"13,400.00 ₽"}},{"$f":"SUBTOTAL(109,Сведения_о_проекте[[АДМИНИСТРАТИВНЫЙ ПЕРСОНАЛ ]])","v":{"v":9060,"d":"9,060.00 ₽"}}]
[null,"ЗАПЛАНИРОВАННЫЕ ЧАСЫ РАБОТЫ",{"$f":"C16/$C$12","v":{"v":300,"d":"300.00"}},{"$f":"D16/$C$12","v":{"v":290,"d":"290.00"}},{"v":133.33333333333334,"d":"133.33"},{"v":161.11111111111111,"d":"161.11"},{"v":73.33333333333333,"d":"73.33"},{"v":50,"d":"50.00"}]
[null,"ФАКТИЧЕСКИЕ ЧАСЫ РАБОТЫ",{"$f":"C17/$C$12","v":{"v":302,"d":"302.00"}},{"$f":"D17/$C$12","v":{"v":286.3333333333333,"d":"286.33"}},{"$f":"E17/$C$12","v":{"v":142.5,"d":"142.50"}},{"$f":"F17/$C$12","v":{"v":160.55555555555554,"d":"160.56"}},{"$f":"G17/$C$12","v":{"v":74.44444444444444,"d":"74.44"}},{"$f":"H17/$C$12","v":{"v":50.333333333333336,"d":"50.33"}}]
[]
[]
[]
[]
[null,"В этой ячейке представлена гистограмма для сравнения запланированных и фактических затрат."]

{"sheet":"СВЕДЕНИЯ О ПРОЕКТЕ","index":2,"n_rows":10,"n_cols":23,"rows_kept":10}
["Укажите на этом листе сведения о проекте. Название компании автоматически обновляется в ячейке справа. Ячейки в этом столбце содержат полезные инструкции. Нажмите СТРЕЛКУ ВНИЗ, чтобы начать.",{"$f":"'ПАРАМЕТРЫ ПРОЕКТА'!B1","v":"Название компании"}]
["Ячейка справа содержит название листа.","Средство учета проектов по управлению мероприятиями"]
["В ячейке справа представлено заявление о конфиденциальности.",{"$f":"'ПАРАМЕТРЫ ПРОЕКТА'!B3","v":"Название компании (конфиденциально)"}]
["Введите сведения в таблице «Сведения о проекте», начинающейся с ячейки справа.\nИНФОРМАЦИЯ\nЧтобы добавить строку в таблицу справа, выберите ячейку в правом нижнем углу таблицы (за исключением столбца итогов) и нажмите клавишу TAB либо нажмите клавиши SHIFT+F10, выделив то место, где требуется вставить строку, выберите пункт «Вставить», а затем — «Строки таблицы выше/ниже».\nУбедитесь, что все неиспользуемые строки удалены. В противном случае вы получите ошибочные результаты, так как сводная таблица «Итоги проекта» использует все ячейки таблицы.","НАЗВАНИЕ ПРОЕКТА","ТИП ПРОЕКТА","НАЧАЛО (ПРЕДПОЛ.)","ЗАВЕРШЕНИЕ (ПРЕДПОЛ.)","НАЧАЛО (ФАКТ.)","ЗАВЕРШЕНИЕ (ФАКТ.)","ТРУДОЗАТРАТЫ (ПРЕДПОЛ.)","ТРУДОЗАТРАТЫ (ФАКТ.)","ДЛИТЕЛЬНОСТЬ (ПРЕДПОЛ.)","ДЛИТЕЛЬНОСТЬ (ФАКТ.)","МЕНЕДЖЕР ПО РАБОТЕ С КЛИЕНТАМИ","РУКОВОДИТЕЛЬ ПРОЕКТА","МЕНЕДЖЕР ПО СТРАТЕГИИ","СПЕЦИАЛИСТ ПО ДИЗАЙНУ","ОБСЛУЖИВАЮЩИЙ ПЕРСОНАЛ","АДМИНИСТРАТИВНЫЙ ПЕРСОНАЛ","МЕНЕДЖЕР ПО РАБОТЕ С КЛИЕНТАМИ ","РУКОВОДИТЕЛЬ ПРОЕКТА ","МЕНЕДЖЕР ПО СТРАТЕГИИ ","СПЕЦИАЛИСТ ПО ДИЗАЙНУ ","ОБСЛУЖИВАЮЩИЙ ПЕРСОНАЛ ","АДМИНИСТРАТИВНЫЙ ПЕРСОНАЛ "]
[null,"Проект 1","Разработка стратегии мероприятия",{"$f":"DATE(YEAR(TODAY()),6,9)","v":"2019-06-09"},{"$f":"DATE(YEAR(TODAY()),8,7)","v":"2019-08-07"},{"$f":"DATE(YEAR(TODAY()),6,29)","v":"2019-06-29"},{"$f":"DATE(YEAR(TODAY()),9,3)","v":"2019-09-03"},200,220,{"$f":"DAYS360(Сведения_о_проекте[[#This Row],[НАЧАЛО (ПРЕДПОЛ.)]],Сведения_о_проекте[[#This Row],[ЗАВЕРШЕНИЕ (ПРЕДПОЛ.)]],FALSE)","v":58},{"$f":"DAYS360(Сведения_о_проекте[[#This Row],[НАЧАЛО (ФАКТ.)]],Сведения_о_проекте[[#This Row],[ЗАВЕРШЕНИЕ (ФАКТ.)]],FALSE)","v":64},{"$f":"INDEX(Параметры[],MATCH(Сведения_о_проекте[[#This Row],[ТИП ПРОЕКТА]],Параметры[ТИП ПРОЕКТА],0),MATCH(Сведения_о_проекте[[#Headers],[МЕНЕДЖЕР ПО РАБОТЕ С КЛИЕНТАМИ]],Параметры[#Headers],0))*INDEX('ПАРАМЕТРЫ ПРОЕКТА'!$B$12:$H$12,1,MATCH(Сведения_о_проекте[[#Headers],[МЕНЕДЖЕР ПО РАБОТЕ С КЛИЕНТАМИ]],Параметры[#Headers],0))*Сведения_о_проекте[[#This Row],[ТРУДОЗАТРАТЫ (ПРЕДПОЛ.)]]","v":{"v":7200,"d":"7,200 ₽"}},{"$f":"INDEX(Параметры[],MATCH(Сведения_о_проекте[[#This Row],[ТИП ПРОЕКТА]],Параметры[ТИП ПРОЕКТА],0),MATCH(Сведения_о_проекте[[#Headers],[РУКОВОДИТЕЛЬ ПРОЕКТА]],Параметры[#Headers],0))*INDEX('ПАРАМЕТРЫ ПРОЕКТА'!$B$12:$H$12,1,MATCH(Сведения_о_проекте[[#Headers],[РУКОВОДИТЕЛЬ ПРОЕКТА]],Параметры[#Headers],0))*Сведения_о_проекте[[#This Row],[ТРУДОЗАТРАТЫ (ПРЕДПОЛ.)]]","v":{"v":2400,"d":"2,400 ₽"}},{"$f":"INDEX(Параметры[],MATCH(Сведения_о_проекте[[#This Row],[ТИП ПРОЕКТА]],Параметры[ТИП ПРОЕКТА],0),MATCH(Сведения_о_проекте[[#Headers],[МЕНЕДЖЕР ПО СТРАТЕГИИ]],Параметры[#Headers],0))*INDEX('ПАРАМЕТРЫ ПРОЕКТА'!$B$12:$H$12,1,MATCH(Сведения_о_проекте[[#Headers],[МЕНЕДЖЕР ПО СТРАТЕГИИ]],Параметры[#Headers],0))*Сведения_о_проекте[[#This Row],[ТРУДОЗАТРАТЫ (ПРЕДПОЛ.)]]","v":{"v":18000,"d":"18,000 ₽"}},{"$f":"INDEX(Параметры[],MATCH(Сведения_о_проекте[[#This Row],[ТИП ПРОЕКТА]],Параметры[ТИП ПРОЕКТА],0),MATCH(Сведения_о_проекте[[#Headers],[СПЕЦИАЛИСТ ПО ДИЗАЙНУ]],Параметры[#Headers],0))*INDEX('ПАРАМЕТРЫ ПРОЕКТА'!$B$12:$H$12,1,MATCH(Сведения_о_проекте[[#Headers],[СПЕЦИАЛИСТ ПО ДИЗАЙНУ]],Параметры[#Headers],0))*Сведения_о_проекте[[#This Row],[ТРУДОЗАТРАТЫ (ПРЕДПОЛ.)]]","v":{"v":0,"d":"0 ₽"}},{"$f":"INDEX(Параметры[],MATCH(Сведения_о_проекте[[#This Row],[ТИП ПРОЕКТА]],Параметры[ТИП ПРОЕКТА],0),MATCH(Сведения_о_проекте[[#Headers],[ОБСЛУЖИВАЮЩИЙ ПЕРСОНАЛ]],Параметры[#Headers],0))*INDEX('ПАРАМЕТРЫ ПРОЕКТА'!$B$12:$H$12,1,MATCH(Сведения_о_проекте[[#Headers],[ОБСЛУЖИВАЮЩИЙ ПЕРСОНАЛ]],Параметры[#Headers],0))*Сведения_о_проекте[[#This Row],[ТРУДОЗАТРАТЫ (ПРЕДПОЛ.)]]","v":{"v":0,"d":"0 ₽"}},{"$f":"INDEX(Параметры[],MATCH(Сведения_о_проекте[[#This Row],[ТИП ПРОЕКТА]],Параметры[ТИП ПРОЕКТА],0),MATCH(Сведения_о_проекте[[#Headers],[АДМИНИСТРАТИВНЫЙ ПЕРСОНАЛ]],Параметры[#Headers],0))*INDEX('ПАРАМЕТРЫ ПРОЕКТА'!$B$12:$H$12,1,MATCH(Сведения_о_проекте[[#Headers],[АДМИНИСТРАТИВНЫЙ ПЕРСОНАЛ]],Параметры[#Headers],0))*Сведения_о_проекте[[#This Row],[ТРУДОЗАТРАТЫ (ПРЕДПОЛ.)]]","v":{"v":1200,"d":"1,200 ₽"}},{"$f":"INDEX(Параметры[],MATCH(Сведения_о_проекте[[#This Row],[ТИП ПРОЕКТА]],Параметры[ТИП ПРОЕКТА],0),MATCH(Сведения_о_проекте[[#Headers],[МЕНЕДЖЕР ПО РАБОТЕ С КЛИЕНТАМИ]],Параметры[#Headers],0))*INDEX('ПАРАМЕТРЫ ПРОЕКТА'!$B$12:$H$12,1,MATCH(Сведения_о_проекте[[#Headers],[МЕНЕДЖЕР ПО РАБОТЕ С КЛИЕНТАМИ]],Параметры[#Headers],0))*Сведения_о_проекте[[#This Row],[ТРУДОЗАТРАТЫ (ФАКТ.)]]","v":{"v":7920,"d":"7,920 ₽"}},{"$f":"INDEX(Параметры[],MATCH(Сведения_о_проекте[[#This Row],[ТИП ПРОЕКТА]],Параметры[ТИП ПРОЕКТА],0),MATCH(Сведения_о_проекте[[#Headers],[РУКОВОДИТЕЛЬ ПРОЕКТА]],Параметры[#Headers],0))*INDEX('ПАРАМЕТРЫ ПРОЕКТА'!$B$12:$H$12,1,MATCH(Сведения_о_проекте[[#Headers],[РУКОВОДИТЕЛЬ ПРОЕКТА]],Параметры[#Headers],0))*Сведения_о_проекте[[#This Row],[ТРУДОЗАТРАТЫ (ФАКТ.)]]","v":{"v":2640,"d":"2,640 ₽"}},{"$f":"INDEX(Параметры[],MATCH(Сведения_о_проекте[[#This Row],[ТИП ПРОЕКТА]],Параметры[ТИП ПРОЕКТА],0),MATCH(Сведения_о_проекте[[#Headers],[МЕНЕДЖЕР ПО СТРАТЕГИИ]],Параметры[#Headers],0))*INDEX('ПАРАМЕТРЫ ПРОЕКТА'!$B$12:$H$12,1,MATCH(Сведения_о_проекте[[#Headers],[МЕНЕДЖЕР ПО СТРАТЕГИИ]],Параметры[#Headers],0))*Сведения_о_проекте[[#This Row],[ТРУДОЗАТРАТЫ (ФАКТ.)]]","v":{"v":19800,"d":"19,800 ₽"}},{"$f":"INDEX(Параметры[],MATCH(Сведения_о_проекте[[#This Row],[ТИП ПРОЕКТА]],Параметры[ТИП ПРОЕКТА],0),MATCH(Сведения_о_проекте[[#Headers],[СПЕЦИАЛИСТ ПО ДИЗАЙНУ]],Параметры[#Headers],0))*INDEX('ПАРАМЕТРЫ ПРОЕКТА'!$B$12:$H$12,1,MATCH(Сведения_о_проекте[[#Headers],[СПЕЦИАЛИСТ ПО ДИЗАЙНУ]],Параметры[#Headers],0))*Сведения_о_проекте[[#This Row],[ТРУДОЗАТРАТЫ (ФАКТ.)]]","v":{"v":0,"d":"0 ₽"}},{"$f":"INDEX(Параметры[],MATCH(Сведения_о_проекте[[#This Row],[ТИП ПРОЕКТА]],Параметры[ТИП ПРОЕКТА],0),MATCH(Сведения_о_проекте[[#Headers],[ОБСЛУЖИВАЮЩИЙ ПЕРСОНАЛ]],Параметры[#Headers],0))*INDEX('ПАРАМЕТРЫ ПРОЕКТА'!$B$12:$H$12,1,MATCH(Сведения_о_проекте[[#Headers],[ОБСЛУЖИВАЮЩИЙ ПЕРСОНАЛ]],Параметры[#Headers],0))*Сведения_о_проекте[[#This Row],[ТРУДОЗАТРАТЫ (ФАКТ.)]]","v":{"v":0,"d":"0 ₽"}},{"$f":"INDEX(Параметры[],MATCH(Сведения_о_проекте[[#This Row],[ТИП ПРОЕКТА]],Параметры[ТИП ПРОЕКТА],0),MATCH(Сведения_о_проекте[[#Headers],[АДМИНИСТРАТИВНЫЙ ПЕРСОНАЛ]],Параметры[#Headers],0))*INDEX('ПАРАМЕТРЫ ПРОЕКТА'!$B$12:$H$12,1,MATCH(Сведения_о_проекте[[#Headers],[АДМИНИСТРАТИВНЫЙ ПЕРСОНАЛ]],Параметры[#Headers],0))*Сведения_о_проекте[[#This Row],[ТРУДОЗАТРАТЫ (ФАКТ.)]]","v":{"v":1320,"d":"1,320 ₽"}}]
[null,"Проект 2","Планирование мероприятия",{"$f":"DATE(YEAR(TODAY())+1,6,25)","v":"2020-06-25"},{"$f":"DATE(YEAR(TODAY())+1,7,27)","v":"2020-07-27"},{"$f":"DATE(YEAR(TODAY()),7,15)","v":"2019-07-15"},{"$f":"DATE(YEAR(TODAY())+1,8,25)","v":"2020-08-25"},400,390,{"$f":"DAYS360(Сведения_о_проекте[[#This Row],[НАЧАЛО (ПРЕДПОЛ.)]],Сведения_о_проекте[[#This Row],[ЗАВЕРШЕНИЕ (ПРЕДПОЛ.)]],FALSE)","v":32},{"$f":"DAYS360(Сведения_о_проекте[[#This Row],[НАЧАЛО (ФАКТ.)]],Сведения_о_проекте[[#This Row],[ЗАВЕРШЕНИЕ (ФАКТ.)]],FALSE)","v":400},{"$f":"INDEX(Параметры[],MATCH(Сведения_о_проекте[[#This Row],[ТИП ПРОЕКТА]],Параметры[ТИП ПРОЕКТА],0),MATCH(Сведения_о_проекте[[#Headers],[МЕНЕДЖЕР ПО РАБОТЕ С КЛИЕНТАМИ]],Параметры[#Headers],0))*INDEX('ПАРАМЕТРЫ ПРОЕКТА'!$B$12:$H$12,1,MATCH(Сведения_о_проекте[[#Headers],[МЕНЕДЖЕР ПО РАБОТЕ С КЛИЕНТАМИ]],Параметры[#Headers],0))*Сведения_о_проекте[[#This Row],[ТРУДОЗАТРАТЫ (ПРЕДПОЛ.)]]","v":{"v":14400,"d":"14,400 ₽"}},{"$f":"INDEX(Параметры[],MATCH(Сведения_о_проекте[[#This Row],[ТИП ПРОЕКТА]],Параметры[ТИП ПРОЕКТА],0),MATCH(Сведения_о_проекте[[#Headers],[РУКОВОДИТЕЛЬ ПРОЕКТА]],Параметры[#Headers],0))*INDEX('ПАРАМЕТРЫ ПРОЕКТА'!$B$12:$H$12,1,MATCH(Сведения_о_проекте[[#Headers],[РУКОВОДИТЕЛЬ ПРОЕКТА]],Параметры[#Headers],0))*Сведения_о_проекте[[#This Row],[ТРУДОЗАТРАТЫ (ПРЕДПОЛ.)]]","v":{"v":24000,"d":"24,000 ₽"}},{"$f":"INDEX(Параметры[],MATCH(Сведения_о_проекте[[#This Row],[ТИП ПРОЕКТА]],Параметры[ТИП ПРОЕКТА],0),MATCH(Сведения_о_проекте[[#Headers],[МЕНЕДЖЕР ПО СТРАТЕГИИ]],Параметры[#Headers],0))*INDEX('ПАРАМЕТРЫ ПРОЕКТА'!$B$12:$H$12,1,MATCH(Сведения_о_проекте[[#Headers],[МЕНЕДЖЕР ПО СТРАТЕГИИ]],Параметры[#Headers],0))*Сведения_о_проекте[[#This Row],[ТРУДОЗАТРАТЫ (ПРЕДПОЛ.)]]","v":{"v":6000,"d":"6,000 ₽"}},{"$f":"INDEX(Параметры[],MATCH(Сведения_о_проекте[[#This Row],[ТИП ПРОЕКТА]],Параметры[ТИП ПРОЕКТА],0),MATCH(Сведения_о_проекте[[#Headers],[СПЕЦИАЛИСТ ПО ДИЗАЙНУ]],Параметры[#Headers],0))*INDEX('ПАРАМЕТРЫ ПРОЕКТА'!$B$12:$H$12,1,MATCH(Сведения_о_проекте[[#Headers],[СПЕЦИАЛИСТ ПО ДИЗАЙНУ]],Параметры[#Headers],0))*Сведения_о_проекте[[#This Row],[ТРУДОЗАТРАТЫ (ПРЕДПОЛ.)]]","v":{"v":4000,"d":"4,000 ₽"}},{"$f":"INDEX(Параметры[],MATCH(Сведения_о_проекте[[#This Row],[ТИП ПРОЕКТА]],Параметры[ТИП ПРОЕКТА],0),MATCH(Сведения_о_проекте[[#Headers],[ОБСЛУЖИВАЮЩИЙ ПЕРСОНАЛ]],Параметры[#Headers],0))*INDEX('ПАРАМЕТРЫ ПРОЕКТА'!$B$12:$H$12,1,MATCH(Сведения_о_проекте[[#Headers],[ОБСЛУЖИВАЮЩИЙ ПЕРСОНАЛ]],Параметры[#Headers],0))*Сведения_о_проекте[[#This Row],[ТРУДОЗАТРАТЫ (ПРЕДПОЛ.)]]","v":{"v":0,"d":"0 ₽"}},{"$f":"INDEX(Параметры[],MATCH(Сведения_о_проекте[[#This Row],[ТИП ПРОЕКТА]],Параметры[ТИП ПРОЕКТА],0),MATCH(Сведения_о_проекте[[#Headers],[АДМИНИСТРАТИВНЫЙ ПЕРСОНАЛ]],Параметры[#Headers],0))*INDEX('ПАРАМЕТРЫ ПРОЕКТА'!$B$12:$H$12,1,MATCH(Сведения_о_проекте[[#Headers],[АДМИНИСТРАТИВНЫЙ ПЕРСОНАЛ]],Параметры[#Headers],0))*Сведения_о_проекте[[#This Row],[ТРУДОЗАТРАТЫ (ПРЕДПОЛ.)]]","v":{"v":2400,"d":"2,400 ₽"}},{"$f":"INDEX(Параметры[],MATCH(Сведения_о_проекте[[#This Row],[ТИП ПРОЕКТА]],Параметры[ТИП ПРОЕКТА],0),MATCH(Сведения_о_проекте[[#Headers],[МЕНЕДЖЕР ПО РАБОТЕ С КЛИЕНТАМИ]],Параметры[#Headers],0))*INDEX('ПАРАМЕТРЫ ПРОЕКТА'!$B$12:$H$12,1,MATCH(Сведения_о_проекте[[#Headers],[МЕНЕДЖЕР ПО РАБОТЕ С КЛИЕНТАМИ]],Параметры[#Headers],0))*Сведения_о_проекте[[#This Row],[ТРУДОЗАТРАТЫ (ФАКТ.)]]","v":{"v":14040,"d":"14,040 ₽"}},{"$f":"INDEX(Параметры[],MATCH(Сведения_о_проекте[[#This Row],[ТИП ПРОЕКТА]],Параметры[ТИП ПРОЕКТА],0),MATCH(Сведения_о_проекте[[#Headers],[РУКОВОДИТЕЛЬ ПРОЕКТА]],Параметры[#Headers],0))*INDEX('ПАРАМЕТРЫ ПРОЕКТА'!$B$12:$H$12,1,MATCH(Сведения_о_проекте[[#Headers],[РУКОВОДИТЕЛЬ ПРОЕКТА]],Параметры[#Headers],0))*Сведения_о_проекте[[#This Row],[ТРУДОЗАТРАТЫ (ФАКТ.)]]","v":{"v":23400,"d":"23,400 ₽"}},{"$f":"INDEX(Параметры[],MATCH(Сведения_о_проекте[[#This Row],[ТИП ПРОЕКТА]],Параметры[ТИП ПРОЕКТА],0),MATCH(Сведения_о_проекте[[#Headers],[МЕНЕДЖЕР ПО СТРАТЕГИИ]],Параметры[#Headers],0))*INDEX('ПАРАМЕТРЫ ПРОЕКТА'!$B$12:$H$12,1,MATCH(Сведения_о_проекте[[#Headers],[МЕНЕДЖЕР ПО СТРАТЕГИИ]],Параметры[#Headers],0))*Сведения_о_проекте[[#This Row],[ТРУДОЗАТРАТЫ (ФАКТ.)]]","v":{"v":5850,"d":"5,850 ₽"}},{"$f":"INDEX(Параметры[],MATCH(Сведения_о_проекте[[#This Row],[ТИП ПРОЕКТА]],Параметры[ТИП ПРОЕКТА],0),MATCH(Сведения_о_проекте[[#Headers],[СПЕЦИАЛИСТ ПО ДИЗАЙНУ]],Параметры[#Headers],0))*INDEX('ПАРАМЕТРЫ ПРОЕКТА'!$B$12:$H$12,1,MATCH(Сведения_о_проекте[[#Headers],[СПЕЦИАЛИСТ ПО ДИЗАЙНУ]],Параметры[#Headers],0))*Сведения_о_проекте[[#This Row],[ТРУДОЗАТРАТЫ (ФАКТ.)]]","v":{"v":3900,"d":"3,900 ₽"}},{"$f":"INDEX(Параметры[],MATCH(Сведения_о_проекте[[#This Row],[ТИП ПРОЕКТА]],Параметры[ТИП ПРОЕКТА],0),MATCH(Сведения_о_проекте[[#Headers],[ОБСЛУЖИВАЮЩИЙ ПЕРСОНАЛ]],Параметры[#Headers],0))*INDEX('ПАРАМЕТРЫ ПРОЕКТА'!$B$12:$H$12,1,MATCH(Сведения_о_проекте[[#Headers],[ОБСЛУЖИВАЮЩИЙ ПЕРСОНАЛ]],Параметры[#Headers],0))*Сведения_о_проекте[[#This Row],[ТРУДОЗАТРАТЫ (ФАКТ.)]]","v":{"v":0,"d":"0 ₽"}},{"$f":"INDEX(Параметры[],MATCH(Сведения_о_проекте[[#This Row],[ТИП ПРОЕКТА]],Параметры[ТИП ПРОЕКТА],0),MATCH(Сведения_о_проекте[[#Headers],[АДМИНИСТРАТИВНЫЙ ПЕРСОНАЛ]],Параметры[#Headers],0))*INDEX('ПАРАМЕТРЫ ПРОЕКТА'!$B$12:$H$12,1,MATCH(Сведения_о_проекте[[#Headers],[АДМИНИСТРАТИВНЫЙ ПЕРСОНАЛ]],Параметры[#Headers],0))*Сведения_о_проекте[[#This Row],[ТРУДОЗАТРАТЫ (ФАКТ.)]]","v":{"v":2340,"d":"2,340 ₽"}}]
[null,"Проект 3","Оформление мероприятие",{"$f":"DATE(YEAR(TODAY())+2,7,12)","v":"2021-07-12"},{"$f":"DATE(YEAR(TODAY())+2,9,19)","v":"2021-09-19"},{"$f":"DATE(YEAR(TODAY())+6,8,7)","v":"2025-08-07"},{"$f":"DATE(YEAR(TODAY())+6,10,10)","v":"2025-10-10"},500,500,{"$f":"DAYS360(Сведения_о_проекте[[#This Row],[НАЧАЛО (ПРЕДПОЛ.)]],Сведения_о_проекте[[#This Row],[ЗАВЕРШЕНИЕ (ПРЕДПОЛ.)]],FALSE)","v":67},{"$f":"DAYS360(Сведения_о_проекте[[#This Row],[НАЧАЛО (ФАКТ.)]],Сведения_о_проекте[[#This Row],[ЗАВЕРШЕНИЕ (ФАКТ.)]],FALSE)","v":63},{"$f":"INDEX(Параметры[],MATCH(Сведения_о_проекте[[#This Row],[ТИП ПРОЕКТА]],Параметры[ТИП ПРОЕКТА],0),MATCH(Сведения_о_проекте[[#Headers],[МЕНЕДЖЕР ПО РАБОТЕ С КЛИЕНТАМИ]],Параметры[#Headers],0))*INDEX('ПАРАМЕТРЫ ПРОЕКТА'!$B$12:$H$12,1,MATCH(Сведения_о_проекте[[#Headers],[МЕНЕДЖЕР ПО РАБОТЕ С КЛИЕНТАМИ]],Параметры[#Headers],0))*Сведения_о_проекте[[#This Row],[ТРУДОЗАТРАТЫ (ПРЕДПОЛ.)]]","v":{"v":18000,"d":"18,000 ₽"}},{"$f":"INDEX(Параметры[],MATCH(Сведения_о_проекте[[#This Row],[ТИП ПРОЕКТА]],Параметры[ТИП ПРОЕКТА],0),MATCH(Сведения_о_проекте[[#Headers],[РУКОВОДИТЕЛЬ ПРОЕКТА]],Параметры[#Headers],0))*INDEX('ПАРАМЕТРЫ ПРОЕКТА'!$B$12:$H$12,1,MATCH(Сведения_о_проекте[[#Headers],[РУКОВОДИТЕЛЬ ПРОЕКТА]],Параметры[#Headers],0))*Сведения_о_проекте[[#This Row],[ТРУДОЗАТРАТЫ (ПРЕДПОЛ.)]]","v":{"v":12000,"d":"12,000 ₽"}},{"$f":"INDEX(Параметры[],MATCH(Сведения_о_проекте[[#This Row],[ТИП ПРОЕКТА]],Параметры[ТИП ПРОЕКТА],0),MATCH(Сведения_о_проекте[[#Headers],[МЕНЕДЖЕР ПО СТРАТЕГИИ]],Параметры[#Headers],0))*INDEX('ПАРАМЕТРЫ ПРОЕКТА'!$B$12:$H$12,1,MATCH(Сведения_о_проекте[[#Headers],[МЕНЕДЖЕР ПО СТРАТЕГИИ]],Параметры[#Headers],0))*Сведения_о_проекте[[#This Row],[ТРУДОЗАТРАТЫ (ПРЕДПОЛ.)]]","v":{"v":0,"d":"0 ₽"}},{"$f":"INDEX(Параметры[],MATCH(Сведения_о_проекте[[#This Row],[ТИП ПРОЕКТА]],Параметры[ТИП ПРОЕКТА],0),MATCH(Сведения_о_проекте[[#Headers],[СПЕЦИАЛИСТ ПО ДИЗАЙНУ]],Параметры[#Headers],0))*INDEX('ПАРАМЕТРЫ ПРОЕКТА'!$B$12:$H$12,1,MATCH(Сведения_о_проекте[[#Headers],[СПЕЦИАЛИСТ ПО ДИЗАЙНУ]],Параметры[#Headers],0))*Сведения_о_проекте[[#This Row],[ТРУДОЗАТРАТЫ (ПРЕДПОЛ.)]]","v":{"v":25000,"d":"25,000 ₽"}},{"$f":"INDEX(Параметры[],MATCH(Сведения_о_проекте[[#This Row],[ТИП ПРОЕКТА]],Параметры[ТИП ПРОЕКТА],0),MATCH(Сведения_о_проекте[[#Headers],[ОБСЛУЖИВАЮЩИЙ ПЕРСОНАЛ]],Параметры[#Headers],0))*INDEX('ПАРАМЕТРЫ ПРОЕКТА'!$B$12:$H$12,1,MATCH(Сведения_о_проекте[[#Headers],[ОБСЛУЖИВАЮЩИЙ ПЕРСОНАЛ]],Параметры[#Headers],0))*Сведения_о_проекте[[#This Row],[ТРУДОЗАТРАТЫ (ПРЕДПОЛ.)]]","v":{"v":0,"d":"0 ₽"}},{"$f":"INDEX(Параметры[],MATCH(Сведения_о_проекте[[#This Row],[ТИП ПРОЕКТА]],Параметры[ТИП ПРОЕКТА],0),MATCH(Сведения_о_проекте[[#Headers],[АДМИНИСТРАТИВНЫЙ ПЕРСОНАЛ]],Параметры[#Headers],0))*INDEX('ПАРАМЕТРЫ ПРОЕКТА'!$B$12:$H$12,1,MATCH(Сведения_о_проекте[[#Headers],[АДМИНИСТРАТИВНЫЙ ПЕРСОНАЛ]],Параметры[#Headers],0))*Сведения_о_проекте[[#This Row],[ТРУДОЗАТРАТЫ (ПРЕДПОЛ.)]]","v":{"v":3000,"d":"3,000 ₽"}},{"$f":"INDEX(Параметры[],MATCH(Сведения_о_проекте[[#This Row],[ТИП ПРОЕКТА]],Параметры[ТИП ПРОЕКТА],0),MATCH(Сведения_о_проекте[[#Headers],[МЕНЕДЖЕР ПО РАБОТЕ С КЛИЕНТАМИ]],Параметры[#Headers],0))*INDEX('ПАРАМЕТРЫ ПРОЕКТА'!$B$12:$H$12,1,MATCH(Сведения_о_проекте[[#Headers],[МЕНЕДЖЕР ПО РАБОТЕ С КЛИЕНТАМИ]],Параметры[#Headers],0))*Сведения_о_проекте[[#This Row],[ТРУДОЗАТРАТЫ (ФАКТ.)]]","v":{"v":18000,"d":"18,000 ₽"}},{"$f":"INDEX(Параметры[],MATCH(Сведения_о_проекте[[#This Row],[ТИП ПРОЕКТА]],Параметры[ТИП ПРОЕКТА],0),MATCH(Сведения_о_проекте[[#Headers],[РУКОВОДИТЕЛЬ ПРОЕКТА]],Параметры[#Headers],0))*INDEX('ПАРАМЕТРЫ ПРОЕКТА'!$B$12:$H$12,1,MATCH(Сведения_о_проекте[[#Headers],[РУКОВОДИТЕЛЬ ПРОЕКТА]],Параметры[#Headers],0))*Сведения_о_проекте[[#This Row],[ТРУДОЗАТРАТЫ (ФАКТ.)]]","v":{"v":12000,"d":"12,000 ₽"}},{"$f":"INDEX(Параметры[],MATCH(Сведения_о_проекте[[#This Row],[ТИП ПРОЕКТА]],Параметры[ТИП ПРОЕКТА],0),MATCH(Сведения_о_проекте[[#Headers],[МЕНЕДЖЕР ПО СТРАТЕГИИ]],Параметры[#Headers],0))*INDEX('ПАРАМЕТРЫ ПРОЕКТА'!$B$12:$H$12,1,MATCH(Сведения_о_проекте[[#Headers],[МЕНЕДЖЕР ПО СТРАТЕГИИ]],Параметры[#Headers],0))*Сведения_о_проекте[[#This Row],[ТРУДОЗАТРАТЫ (ФАКТ.)]]","v":{"v":0,"d":"0 ₽"}},{"$f":"INDEX(Параметры[],MATCH(Сведения_о_проекте[[#This Row],[ТИП ПРОЕКТА]],Параметры[ТИП ПРОЕКТА],0),MATCH(Сведения_о_проекте[[#Headers],[СПЕЦИАЛИСТ ПО ДИЗАЙНУ]],Параметры[#Headers],0))*INDEX('ПАРАМЕТРЫ ПРОЕКТА'!$B$12:$H$12,1,MATCH(Сведения_о_проекте[[#Headers],[СПЕЦИАЛИСТ ПО ДИЗАЙНУ]],Параметры[#Headers],0))*Сведения_о_проекте[[#This Row],[ТРУДОЗАТРАТЫ (ФАКТ.)]]","v":{"v":25000,"d":"25,000 ₽"}},{"$f":"INDEX(Параметры[],MATCH(Сведения_о_проекте[[#This Row],[ТИП ПРОЕКТА]],Параметры[ТИП ПРОЕКТА],0),MATCH(Сведения_о_проекте[[#Headers],[ОБСЛУЖИВАЮЩИЙ ПЕРСОНАЛ]],Параметры[#Headers],0))*INDEX('ПАРАМЕТРЫ ПРОЕКТА'!$B$12:$H$12,1,MATCH(Сведения_о_проекте[[#Headers],[ОБСЛУЖИВАЮЩИЙ ПЕРСОНАЛ]],Параметры[#Headers],0))*Сведения_о_проекте[[#This Row],[ТРУДОЗАТРАТЫ (ФАКТ.)]]","v":{"v":0,"d":"0 ₽"}},{"$f":"INDEX(Параметры[],MATCH(Сведения_о_проекте[[#This Row],[ТИП ПРОЕКТА]],Параметры[ТИП ПРОЕКТА],0),MATCH(Сведения_о_проекте[[#Headers],[АДМИНИСТРАТИВНЫЙ ПЕРСОНАЛ]],Параметры[#Headers],0))*INDEX('ПАРАМЕТРЫ ПРОЕКТА'!$B$12:$H$12,1,MATCH(Сведения_о_проекте[[#Headers],[АДМИНИСТРАТИВНЫЙ ПЕРСОНАЛ]],Параметры[#Headers],0))*Сведения_о_проекте[[#This Row],[ТРУДОЗАТРАТЫ (ФАКТ.)]]","v":{"v":3000,"d":"3,000 ₽"}}]
[null,"Проект 4","Логистика мероприятия",{"$f":"DATE(YEAR(TODAY())+3,7,30)","v":"2022-07-30"},{"$f":"DATE(YEAR(TODAY())+3,9,28)","v":"2022-09-28"},{"$f":"DATE(YEAR(TODAY())+3,9,14)","v":"2022-09-14"},{"$f":"DATE(YEAR(TODAY())+3,11,13)","v":"2022-11-13"},150,145,{"$f":"DAYS360(Сведения_о_проекте[[#This Row],[НАЧАЛО (ПРЕДПОЛ.)]],Сведения_о_проекте[[#This Row],[ЗАВЕРШЕНИЕ (ПРЕДПОЛ.)]],FALSE)","v":58},{"$f":"DAYS360(Сведения_о_проекте[[#This Row],[НАЧАЛО (ФАКТ.)]],Сведения_о_проекте[[#This Row],[ЗАВЕРШЕНИЕ (ФАКТ.)]],FALSE)","v":59},{"$f":"INDEX(Параметры[],MATCH(Сведения_о_проекте[[#This Row],[ТИП ПРОЕКТА]],Параметры[ТИП ПРОЕКТА],0),MATCH(Сведения_о_проекте[[#Headers],[МЕНЕДЖЕР ПО РАБОТЕ С КЛИЕНТАМИ]],Параметры[#Headers],0))*INDEX('ПАРАМЕТРЫ ПРОЕКТА'!$B$12:$H$12,1,MATCH(Сведения_о_проекте[[#Headers],[МЕНЕДЖЕР ПО РАБОТЕ С КЛИЕНТАМИ]],Параметры[#Headers],0))*Сведения_о_проекте[[#This Row],[ТРУДОЗАТРАТЫ (ПРЕДПОЛ.)]]","v":{"v":5400,"d":"5,400 ₽"}},{"$f":"INDEX(Параметры[],MATCH(Сведения_о_проекте[[#This Row],[ТИП ПРОЕКТА]],Параметры[ТИП ПРОЕКТА],0),MATCH(Сведения_о_проекте[[#Headers],[РУКОВОДИТЕЛЬ ПРОЕКТА]],Параметры[#Headers],0))*INDEX('ПАРАМЕТРЫ ПРОЕКТА'!$B$12:$H$12,1,MATCH(Сведения_о_проекте[[#Headers],[РУКОВОДИТЕЛЬ ПРОЕКТА]],Параметры[#Headers],0))*Сведения_о_проекте[[#This Row],[ТРУДОЗАТРАТЫ (ПРЕДПОЛ.)]]","v":{"v":10800,"d":"10,800 ₽"}},{"$f":"INDEX(Параметры[],MATCH(Сведения_о_проекте[[#This Row],[ТИП ПРОЕКТА]],Параметры[ТИП ПРОЕКТА],0),MATCH(Сведения_о_проекте[[#Headers],[МЕНЕДЖЕР ПО СТРАТЕГИИ]],Параметры[#Headers],0))*INDEX('ПАРАМЕТРЫ ПРОЕКТА'!$B$12:$H$12,1,MATCH(Сведения_о_проекте[[#Headers],[МЕНЕДЖЕР ПО СТРАТЕГИИ]],Параметры[#Headers],0))*Сведения_о_проекте[[#This Row],[ТРУДОЗАТРАТЫ (ПРЕДПОЛ.)]]","v":{"v":0,"d":"0 ₽"}},{"$f":"INDEX(Параметры[],MATCH(Сведения_о_проекте[[#This Row],[ТИП ПРОЕКТА]],Параметры[ТИП ПРОЕКТА],0),MATCH(Сведения_о_проекте[[#Headers],[СПЕЦИАЛИСТ ПО ДИЗАЙНУ]],Параметры[#Headers],0))*INDEX('ПАРАМЕТРЫ ПРОЕКТА'!$B$12:$H$12,1,MATCH(Сведения_о_проекте[[#Headers],[СПЕЦИАЛИСТ ПО ДИЗАЙНУ]],Параметры[#Headers],0))*Сведения_о_проекте[[#This Row],[ТРУДОЗАТРАТЫ (ПРЕДПОЛ.)]]","v":{"v":0,"d":"0 ₽"}},{"$f":"INDEX(Параметры[],MATCH(Сведения_о_проекте[[#This Row],[ТИП ПРОЕКТА]],Параметры[ТИП ПРОЕКТА],0),MATCH(Сведения_о_проекте[[#Headers],[ОБСЛУЖИВАЮЩИЙ ПЕРСОНАЛ]],Параметры[#Headers],0))*INDEX('ПАРАМЕТРЫ ПРОЕКТА'!$B$12:$H$12,1,MATCH(Сведения_о_проекте[[#Headers],[ОБСЛУЖИВАЮЩИЙ ПЕРСОНАЛ]],Параметры[#Headers],0))*Сведения_о_проекте[[#This Row],[ТРУДОЗАТРАТЫ (ПРЕДПОЛ.)]]","v":{"v":1200,"d":"1,200 ₽"}},{"$f":"INDEX(Параметры[],MATCH(Сведения_о_проекте[[#This Row],[ТИП ПРОЕКТА]],Параметры[ТИП ПРОЕКТА],0),MATCH(Сведения_о_проекте[[#Headers],[АДМИНИСТРАТИВНЫЙ ПЕРСОНАЛ]],Параметры[#Headers],0))*INDEX('ПАРАМЕТРЫ ПРОЕКТА'!$B$12:$H$12,1,MATCH(Сведения_о_проекте[[#Headers],[АДМИНИСТРАТИВНЫЙ ПЕРСОНАЛ]],Параметры[#Headers],0))*Сведения_о_проекте[[#This Row],[ТРУДОЗАТРАТЫ (ПРЕДПОЛ.)]]","v":{"v":900,"d":"900 ₽"}},{"$f":"INDEX(Параметры[],MATCH(Сведения_о_проекте[[#This Row],[ТИП ПРОЕКТА]],Параметры[ТИП ПРОЕКТА],0),MATCH(Сведения_о_проекте[[#Headers],[МЕНЕДЖЕР ПО РАБОТЕ С КЛИЕНТАМИ]],Параметры[#Headers],0))*INDEX('ПАРАМЕТРЫ ПРОЕКТА'!$B$12:$H$12,1,MATCH(Сведения_о_проекте[[#Headers],[МЕНЕДЖЕР ПО РАБОТЕ С КЛИЕНТАМИ]],Параметры[#Headers],0))*Сведения_о_проекте[[#This Row],[ТРУДОЗАТРАТЫ (ФАКТ.)]]","v":{"v":5220,"d":"5,220 ₽"}},{"$f":"INDEX(Параметры[],MATCH(Сведения_о_проекте[[#This Row],[ТИП ПРОЕКТА]],Параметры[ТИП ПРОЕКТА],0),MATCH(Сведения_о_проекте[[#Headers],[РУКОВОДИТЕЛЬ ПРОЕКТА]],Параметры[#Headers],0))*INDEX('ПАРАМЕТРЫ ПРОЕКТА'!$B$12:$H$12,1,MATCH(Сведения_о_проекте[[#Headers],[РУКОВОДИТЕЛЬ ПРОЕКТА]],Параметры[#Headers],0))*Сведения_о_проекте[[#This Row],[ТРУДОЗАТРАТЫ (ФАКТ.)]]","v":{"v":10440,"d":"10,440 ₽"}},{"$f":"INDEX(Параметры[],MATCH(Сведения_о_проекте[[#This Row],[ТИП ПРОЕКТА]],Параметры[ТИП ПРОЕКТА],0),MATCH(Сведения_о_проекте[[#Headers],[МЕНЕДЖЕР ПО СТРАТЕГИИ]],Параметры[#Headers],0))*INDEX('ПАРАМЕТРЫ ПРОЕКТА'!$B$12:$H$12,1,MATCH(Сведения_о_проекте[[#Headers],[МЕНЕДЖЕР ПО СТРАТЕГИИ]],Параметры[#Headers],0))*Сведения_о_проекте[[#This Row],[ТРУДОЗАТРАТЫ (ФАКТ.)]]","v":{"v":0,"d":"0 ₽"}},{"$f":"INDEX(Параметры[],MATCH(Сведения_о_проекте[[#This Row],[ТИП ПРОЕКТА]],Параметры[ТИП ПРОЕКТА],0),MATCH(Сведения_о_проекте[[#Headers],[СПЕЦИАЛИСТ ПО ДИЗАЙНУ]],Параметры[#Headers],0))*INDEX('ПАРАМЕТРЫ ПРОЕКТА'!$B$12:$H$12,1,MATCH(Сведения_о_проекте[[#Headers],[СПЕЦИАЛИСТ ПО ДИЗАЙНУ]],Параметры[#Headers],0))*Сведения_о_проекте[[#This Row],[ТРУДОЗАТРАТЫ (ФАКТ.)]]","v":{"v":0,"d":"0 ₽"}},{"$f":"INDEX(Параметры[],MATCH(Сведения_о_проекте[[#This Row],[ТИП ПРОЕКТА]],Параметры[ТИП ПРОЕКТА],0),MATCH(Сведения_о_проекте[[#Headers],[ОБСЛУЖИВАЮЩИЙ ПЕРСОНАЛ]],Параметры[#Headers],0))*INDEX('ПАРАМЕТРЫ ПРОЕКТА'!$B$12:$H$12,1,MATCH(Сведения_о_проекте[[#Headers],[ОБСЛУЖИВАЮЩИЙ ПЕРСОНАЛ]],Параметры[#Headers],0))*Сведения_о_проекте[[#This Row],[ТРУДОЗАТРАТЫ (ФАКТ.)]]","v":{"v":1160,"d":"1,160 ₽"}},{"$f":"INDEX(Параметры[],MATCH(Сведения_о_проекте[[#This Row],[ТИП ПРОЕКТА]],Параметры[ТИП ПРОЕКТА],0),MATCH(Сведения_о_проекте[[#Headers],[АДМИНИСТРАТИВНЫЙ ПЕРСОНАЛ]],Параметры[#Headers],0))*INDEX('ПАРАМЕТРЫ ПРОЕКТА'!$B$12:$H$12,1,MATCH(Сведения_о_проекте[[#Headers],[АДМИНИСТРАТИВНЫЙ ПЕРСОНАЛ]],Параметры[#Headers],0))*Сведения_о_проекте[[#This Row],[ТРУДОЗАТРАТЫ (ФАКТ.)]]","v":{"v":870,"d":"870 ₽"}}]
[null,"Проект 5","Подбор обслуживающего персонала",{"$f":"DATE(YEAR(TODAY())+4,8,11)","v":"2023-08-11"},{"$f":"DATE(YEAR(TODAY())+4,8,21)","v":"2023-08-21"},{"$f":"DATE(YEAR(TODAY())+4,9,14)","v":"2023-09-14"},{"$f":"DATE(YEAR(TODAY())+4,9,25)","v":"2023-09-25"},250,255,{"$f":"DAYS360(Сведения_о_проекте[[#This Row],[НАЧАЛО (ПРЕДПОЛ.)]],Сведения_о_проекте[[#This Row],[ЗАВЕРШЕНИЕ (ПРЕДПОЛ.)]],FALSE)","v":10},{"$f":"DAYS360(Сведения_о_проекте[[#This Row],[НАЧАЛО (ФАКТ.)]],Сведения_о_проекте[[#This Row],[ЗАВЕРШЕНИЕ (ФАКТ.)]],FALSE)","v":11},{"$f":"INDEX(Параметры[],MATCH(Сведения_о_проекте[[#This Row],[ТИП ПРОЕКТА]],Параметры[ТИП ПРОЕКТА],0),MATCH(Сведения_о_проекте[[#Headers],[МЕНЕДЖЕР ПО РАБОТЕ С КЛИЕНТАМИ]],Параметры[#Headers],0))*INDEX('ПАРАМЕТРЫ ПРОЕКТА'!$B$12:$H$12,1,MATCH(Сведения_о_проекте[[#Headers],[МЕНЕДЖЕР ПО РАБОТЕ С КЛИЕНТАМИ]],Параметры[#Headers],0))*Сведения_о_проекте[[#This Row],[ТРУДОЗАТРАТЫ (ПРЕДПОЛ.)]]","v":{"v":9000,"d":"9,000 ₽"}},{"$f":"INDEX(Параметры[],MATCH(Сведения_о_проекте[[#This Row],[ТИП ПРОЕКТА]],Параметры[ТИП ПРОЕКТА],0),MATCH(Сведения_о_проекте[[#Headers],[РУКОВОДИТЕЛЬ ПРОЕКТА]],Параметры[#Headers],0))*INDEX('ПАРАМЕТРЫ ПРОЕКТА'!$B$12:$H$12,1,MATCH(Сведения_о_проекте[[#Headers],[РУКОВОДИТЕЛЬ ПРОЕКТА]],Параметры[#Headers],0))*Сведения_о_проекте[[#This Row],[ТРУДОЗАТРАТЫ (ПРЕДПОЛ.)]]","v":{"v":3000,"d":"3,000 ₽"}},{"$f":"INDEX(Параметры[],MATCH(Сведения_о_проекте[[#This Row],[ТИП ПРОЕКТА]],Параметры[ТИП ПРОЕКТА],0),MATCH(Сведения_о_проекте[[#Headers],[МЕНЕДЖЕР ПО СТРАТЕГИИ]],Параметры[#Headers],0))*INDEX('ПАРАМЕТРЫ ПРОЕКТА'!$B$12:$H$12,1,MATCH(Сведения_о_проекте[[#Headers],[МЕНЕДЖЕР ПО СТРАТЕГИИ]],Параметры[#Headers],0))*Сведения_о_проекте[[#This Row],[ТРУДОЗАТРАТЫ (ПРЕДПОЛ.)]]","v":{"v":0,"d":"0 ₽"}},{"$f":"INDEX(Параметры[],MATCH(Сведения_о_проекте[[#This Row],[ТИП ПРОЕКТА]],Параметры[ТИП ПРОЕКТА],0),MATCH(Сведения_о_проекте[[#Headers],[СПЕЦИАЛИСТ ПО ДИЗАЙНУ]],Параметры[#Headers],0))*INDEX('ПАРАМЕТРЫ ПРОЕКТА'!$B$12:$H$12,1,MATCH(Сведения_о_проекте[[#Headers],[СПЕЦИАЛИСТ ПО ДИЗАЙНУ]],Параметры[#Headers],0))*Сведения_о_проекте[[#This Row],[ТРУДОЗАТРАТЫ (ПРЕДПОЛ.)]]","v":{"v":0,"d":"0 ₽"}},{"$f":"INDEX(Параметры[],MATCH(Сведения_о_проекте[[#This Row],[ТИП ПРОЕКТА]],Параметры[ТИП ПРОЕКТА],0),MATCH(Сведения_о_проекте[[#Headers],[ОБСЛУЖИВАЮЩИЙ ПЕРСОНАЛ]],Параметры[#Headers],0))*INDEX('ПАРАМЕТРЫ ПРОЕКТА'!$B$12:$H$12,1,MATCH(Сведения_о_проекте[[#Headers],[ОБСЛУЖИВАЮЩИЙ ПЕРСОНАЛ]],Параметры[#Headers],0))*Сведения_о_проекте[[#This Row],[ТРУДОЗАТРАТЫ (ПРЕДПОЛ.)]]","v":{"v":12000,"d":"12,000 ₽"}},{"$f":"INDEX(Параметры[],MATCH(Сведения_о_проекте[[#This Row],[ТИП ПРОЕКТА]],Параметры[ТИП ПРОЕКТА],0),MATCH(Сведения_о_проекте[[#Headers],[АДМИНИСТРАТИВНЫЙ ПЕРСОНАЛ]],Параметры[#Headers],0))*INDEX('ПАРАМЕТРЫ ПРОЕКТА'!$B$12:$H$12,1,MATCH(Сведения_о_проекте[[#Headers],[АДМИНИСТРАТИВНЫЙ ПЕРСОНАЛ]],Параметры[#Headers],0))*Сведения_о_проекте[[#This Row],[ТРУДОЗАТРАТЫ (ПРЕДПОЛ.)]]","v":{"v":1500,"d":"1,500 ₽"}},{"$f":"INDEX(Параметры[],MATCH(Сведения_о_проекте[[#This Row],[ТИП ПРОЕКТА]],Параметры[ТИП ПРОЕКТА],0),MATCH(Сведения_о_проекте[[#Headers],[МЕНЕДЖЕР ПО РАБОТЕ С КЛИЕНТАМИ]],Параметры[#Headers],0))*INDEX('ПАРАМЕТРЫ ПРОЕКТА'!$B$12:$H$12,1,MATCH(Сведения_о_проекте[[#Headers],[МЕНЕДЖЕР ПО РАБОТЕ С КЛИЕНТАМИ]],Параметры[#Headers],0))*Сведения_о_проекте[[#This Row],[ТРУДОЗАТРАТЫ (ФАКТ.)]]","v":{"v":9180,"d":"9,180 ₽"}},{"$f":"INDEX(Параметры[],MATCH(Сведения_о_проекте[[#This Row],[ТИП ПРОЕКТА]],Параметры[ТИП ПРОЕКТА],0),MATCH(Сведения_о_проекте[[#Headers],[РУКОВОДИТЕЛЬ ПРОЕКТА]],Параметры[#Headers],0))*INDEX('ПАРАМЕТРЫ ПРОЕКТА'!$B$12:$H$12,1,MATCH(Сведения_о_проекте[[#Headers],[РУКОВОДИТЕЛЬ ПРОЕКТА]],Параметры[#Headers],0))*Сведения_о_проекте[[#This Row],[ТРУДОЗАТРАТЫ (ФАКТ.)]]","v":{"v":3060,"d":"3,060 ₽"}},{"$f":"INDEX(Параметры[],MATCH(Сведения_о_проекте[[#This Row],[ТИП ПРОЕКТА]],Параметры[ТИП ПРОЕКТА],0),MATCH(Сведения_о_проекте[[#Headers],[МЕНЕДЖЕР ПО СТРАТЕГИИ]],Параметры[#Headers],0))*INDEX('ПАРАМЕТРЫ ПРОЕКТА'!$B$12:$H$12,1,MATCH(Сведения_о_проекте[[#Headers],[МЕНЕДЖЕР ПО СТРАТЕГИИ]],Параметры[#Headers],0))*Сведения_о_проекте[[#This Row],[ТРУДОЗАТРАТЫ (ФАКТ.)]]","v":{"v":0,"d":"0 ₽"}},{"$f":"INDEX(Параметры[],MATCH(Сведения_о_проекте[[#This Row],[ТИП ПРОЕКТА]],Параметры[ТИП ПРОЕКТА],0),MATCH(Сведения_о_проекте[[#Headers],[СПЕЦИАЛИСТ ПО ДИЗАЙНУ]],Параметры[#Headers],0))*INDEX('ПАРАМЕТРЫ ПРОЕКТА'!$B$12:$H$12,1,MATCH(Сведения_о_проекте[[#Headers],[СПЕЦИАЛИСТ ПО ДИЗАЙНУ]],Параметры[#Headers],0))*Сведения_о_проекте[[#This Row],[ТРУДОЗАТРАТЫ (ФАКТ.)]]","v":{"v":0,"d":"0 ₽"}},{"$f":"INDEX(Параметры[],MATCH(Сведения_о_проекте[[#This Row],[ТИП ПРОЕКТА]],Параметры[ТИП ПРОЕКТА],0),MATCH(Сведения_о_проекте[[#Headers],[ОБСЛУЖИВАЮЩИЙ ПЕРСОНАЛ]],Параметры[#Headers],0))*INDEX('ПАРАМЕТРЫ ПРОЕКТА'!$B$12:$H$12,1,MATCH(Сведения_о_проекте[[#Headers],[ОБСЛУЖИВАЮЩИЙ ПЕРСОНАЛ]],Параметры[#Headers],0))*Сведения_о_проекте[[#This Row],[ТРУДОЗАТРАТЫ (ФАКТ.)]]","v":{"v":12240,"d":"12,240 ₽"}},{"$f":"INDEX(Параметры[],MATCH(Сведения_о_проекте[[#This Row],[ТИП ПРОЕКТА]],Параметры[ТИП ПРОЕКТА],0),MATCH(Сведения_о_проекте[[#Headers],[АДМИНИСТРАТИВНЫЙ ПЕРСОНАЛ]],Параметры[#Headers],0))*INDEX('ПАРАМЕТРЫ ПРОЕКТА'!$B$12:$H$12,1,MATCH(Сведения_о_проекте[[#Headers],[АДМИНИСТРАТИВНЫЙ ПЕРСОНАЛ]],Параметры[#Headers],0))*Сведения_о_проекте[[#This Row],[ТРУДОЗАТРАТЫ (ФАКТ.)]]","v":{"v":1530,"d":"1,530 ₽"}}]
[null,"ИТОГ",{"$nulls":5},{"$f":"SUBTOTAL(109,Сведения_о_проекте[ТРУДОЗАТРАТЫ (ПРЕДПОЛ.)])","v":1500},{"$f":"SUBTOTAL(109,Сведения_о_проекте[ТРУДОЗАТРАТЫ (ФАКТ.)])","v":1510},{"$f":"SUBTOTAL(109,Сведения_о_проекте[ДЛИТЕЛЬНОСТЬ (ПРЕДПОЛ.)])","v":225},{"$f":"SUBTOTAL(109,Сведения_о_проекте[ДЛИТЕЛЬНОСТЬ (ФАКТ.)])","v":597}]

{"sheet":"ИТОГИ ПРОЕКТА","index":3,"n_rows":10,"n_cols":14,"rows_kept":10}
["На этом листе представлены итоги проекта. Название компании автоматически обновляется в ячейке справа. Ячейки в этом столбце содержат полезные инструкции. Нажмите СТРЕЛКУ ВНИЗ, чтобы начать.",{"$f":"'ПАРАМЕТРЫ ПРОЕКТА'!B1","v":"Название компании"}]
["Ячейка справа содержит название листа.","Средство учета проектов по управлению мероприятиями"]
["В ячейке справа представлено заявление о конфиденциальности.",{"$f":"'ПАРАМЕТРЫ ПРОЕКТА'!B3","v":"Название компании (конфиденциально)"}]
["Сведения в сводной таблице, начинающейся с ячейки справа, обновляются автоматически.\nИНФОРМАЦИЯ\nЧтобы обновить сводную таблицу справа, выберите ее (любую ячейку сводной таблицы), а затем на вкладке ленты «Работа со сводными таблицами | Анализ» нажмите кнопку «Обновить» либо нажмите клавиши SHIFT+F10, выбрав любую ячейку сводной таблицы, и выберите пункт «Обновить».","НАЗВАНИЕ ПРОЕКТА","МЕНЕДЖЕР ПО РАБОТЕ С КЛИЕНТАМИ (ПРЕДПОЛ.)","РУКОВОДИТЕЛЬ ПРОЕКТА (ПРЕДПОЛ.)","МЕНЕДЖЕР ПО СТРАТЕГИИ (ПРЕДПОЛ.)","СПЕЦИАЛИСТ ПО ДИЗАЙНУ (ПРЕДПОЛ.)","ОБСЛУЖИВАЮЩИЙ ПЕРСОНАЛ (ПРЕДПОЛ.)","АДМИНИСТРАТИВНЫЙ ПЕРСОНАЛ (ПРЕДПОЛ.)","МЕНЕДЖЕР ПО РАБОТЕ С КЛИЕНТАМИ (ФАКТ.)","РУКОВОДИТЕЛЬ ПРОЕКТА (ФАКТ.)","МЕНЕДЖЕР ПО СТРАТЕГИИ (ФАКТ.)","СПЕЦИАЛИСТ ПО ДИЗАЙНУ (ФАКТ.)","ОБСЛУЖИВАЮЩИЙ ПЕРСОНАЛ (ФАКТ.)","АДМИНИСТРАТИВНЫЙ ПЕРСОНАЛ (ФАКТ.)"]
[null,"Проект 1",{"v":7200,"d":"7,200.00 ₽"},{"v":2400,"d":"2,400.00 ₽"},{"v":18000,"d":"18,000.00 ₽"},{"v":0,"d":"0.00 ₽"},{"v":0,"d":"0.00 ₽"},{"v":1200,"d":"1,200.00 ₽"},{"v":7920,"d":"7,920.00 ₽"},{"v":2640,"d":"2,640.00 ₽"},{"v":19800,"d":"19,800.00 ₽"},{"v":0,"d":"0.00 ₽"},{"v":0,"d":"0.00 ₽"},{"v":1320,"d":"1,320.00 ₽"}]
[null,"Проект 2",{"v":14400,"d":"14,400.00 ₽"},{"v":24000,"d":"24,000.00 ₽"},{"v":6000,"d":"6,000.00 ₽"},{"v":4000,"d":"4,000.00 ₽"},{"v":0,"d":"0.00 ₽"},{"v":2400,"d":"2,400.00 ₽"},{"v":14040,"d":"14,040.00 ₽"},{"v":23400,"d":"23,400.00 ₽"},{"v":5850,"d":"5,850.00 ₽"},{"v":3900,"d":"3,900.00 ₽"},{"v":0,"d":"0.00 ₽"},{"v":2340,"d":"2,340.00 ₽"}]
[null,"Проект 3",{"v":18000,"d":"18,000.00 ₽"},{"v":12000,"d":"12,000.00 ₽"},{"v":0,"d":"0.00 ₽"},{"v":25000,"d":"25,000.00 ₽"},{"v":0,"d":"0.00 ₽"},{"v":3000,"d":"3,000.00 ₽"},{"v":18000,"d":"18,000.00 ₽"},{"v":12000,"d":"12,000.00 ₽"},{"v":0,"d":"0.00 ₽"},{"v":25000,"d":"25,000.00 ₽"},{"v":0,"d":"0.00 ₽"},{"v":3000,"d":"3,000.00 ₽"}]
[null,"Проект 4",{"v":5400,"d":"5,400.00 ₽"},{"v":10800,"d":"10,800.00 ₽"},{"v":0,"d":"0.00 ₽"},{"v":0,"d":"0.00 ₽"},{"v":1200,"d":"1,200.00 ₽"},{"v":900,"d":"900.00 ₽"},{"v":5220,"d":"5,220.00 ₽"},{"v":10440,"d":"10,440.00 ₽"},{"v":0,"d":"0.00 ₽"},{"v":0,"d":"0.00 ₽"},{"v":1160,"d":"1,160.00 ₽"},{"v":870,"d":"870.00 ₽"}]
[null,"Проект 5",{"v":9000,"d":"9,000.00 ₽"},{"v":3000,"d":"3,000.00 ₽"},{"v":0,"d":"0.00 ₽"},{"v":0,"d":"0.00 ₽"},{"v":12000,"d":"12,000.00 ₽"},{"v":1500,"d":"1,500.00 ₽"},{"v":9180,"d":"9,180.00 ₽"},{"v":3060,"d":"3,060.00 ₽"},{"v":0,"d":"0.00 ₽"},{"v":0,"d":"0.00 ₽"},{"v":12240,"d":"12,240.00 ₽"},{"v":1530,"d":"1,530.00 ₽"}]
[null,"Общий итог",{"v":54000,"d":"54,000.00 ₽"},{"v":52200,"d":"52,200.00 ₽"},{"v":24000,"d":"24,000.00 ₽"},{"v":29000,"d":"29,000.00 ₽"},{"v":13200,"d":"13,200.00 ₽"},{"v":9000,"d":"9,000.00 ₽"},{"v":54360,"d":"54,360.00 ₽"},{"v":51540,"d":"51,540.00 ₽"},{"v":25650,"d":"25,650.00 ₽"},{"v":28900,"d":"28,900.00 ₽"},{"v":13400,"d":"13,400.00 ₽"},{"v":9060,"d":"9,060.00 ₽"}]